{"text_format":"2","workbook":"xlsx","n_sheets":4,"sheets":["Information","Samleark","KM regnskab","Anden godtgørelse"],"not_rendered":{"charts":0,"images":1,"macros":0,"external_links":0,"defined_names":0,"comments":3,"pivot_tables":0},"unopened":[],"bounds":{"document_bytes":16777216,"sheet_cells":100000,"run_cost":"one","rows_first":2000,"rows_last":500,"rows_between":2000,"halvings":0,"cell_chars":16384,"cell_head_chars":4096},"cells_cut":0,"cells_raw":0,"read":"whole","date_system":"1900"}

{"sheet":"Information","index":0,"n_rows":33,"n_cols":7,"rows_kept":33,"cut":false,"hidden":false,"merged":[[13,0,13,6],[5,0,5,6],[0,5,0,6]]}
["Hvidovre Idrætsforening, Fodboldafdelingen",{"$nulls":4},"Godtgørelse 2020\n(Over 5.850 pr. år)"]
[]
["Information 2020"]
[]
[]
["Ulønnede instruktører, trænere og ledere kan få skattefri omkostningsgodtgørelse for det arbejde, de udfører i deres forening. Skatterådet har justeret enkelte satser, for eksempel kørsel. De nye satser gælder pr. 1. 1. 2020."]
[]
[null,null,null,"Godtgørelse pr. år.",null,"Godtgørelse pr. mdr."]
["Telefonsamtaler og internetforbrug",null,null,2400,null,{"$f":"D9/12","v":200}]
["Administrative omkostninger",null,null,1450,null,{"$f":"D10/12","v":120.83333333333333}]
["Køb, vask og vedligeholdelse af tøj",null,null,2000,null,166.66666666666666]
["I alt ",null,null,{"$f":"SUM(D6:D11)","v":5850},"pr. år",487.5,"pr. mdr."]
[]
["Din forening kan udbetale befordringsgodtgørelse til personer, der udfører frivilligt arbejde i foreningen. Skatterådet har fastsat nye satser, som gælder pr. 1. 1. 2020:"]
[]
[null,"Km","Sats","Godtgørelse i alt"]
["De første 20.000 km.: ",20000,3.52,{"$f":"B17*C17","v":70400},"(2019: 3,56 kr.)"]
["Over 20.000 km.: ",null,1.96,null,"(2019: 1,98 kr.)"]
[]
["Kost ved arrangementer: ",null,80,"pr. dag. Arrangementet skal vare minimum 5 timer."]
[]
["Læs mere om godtgørelse på HIF hjemmeside",{"$nulls":4},"Her"]
[]
["Afdelinger","Afdelingsleder",null,null,"Hvem er omfattet "]
["Vælg Afdeling","-",null,null,"-"]
["Sportslig Ansvarlig","Jacob Kornerup",null,null,"Afdelingsledere"]
["Talentakademiet (U13A-19A + U23)","Christian Grønbæk",null,null,"(U13A-19A + 2. senior)"]
["Børneakademiet (U3-U12 Drenge & Piger)","Jack Nilaus",null,null,"(U3-U12)"]
["Ungdom/-senior (Herre & Damer U13-U19 + Senior og GM)","Lotte Christiansen",null,null,"(U13-U19 + Senior og GM)"]
[]
["Godkendelse"]
["Godtgørelsen skal være godkendt af din afdelingsleder",null,"JA"]
[null,null,"NEJ"]

{"sheet":"Samleark","index":1,"n_rows":43,"n_cols":6,"rows_kept":43,"cut":false,"hidden":false,"merged":[[0,5,0,6],[13,2,13,4],[14,2,14,4],[15,2,15,4],[5,2,5,4],[6,2,6,4],[7,2,7,4],[8,2,8,4],[10,2,10,4],[11,2,11,4]]}
["Hvidovre Idrætsforening, Fodboldafdelingen",{"$nulls":4},{"$f":"Information!F1","v":"Godtgørelse 2020\n(Over 5.850 pr. år)"}]
[]
["Information"]
[]
[]
["Navn"]
["Adresse"]
["Cpr. nr."]
["Køretøjets reg.nr."]
[]
["Afdeling",null,"Vælg Afdeling"]
["Afdelingsleder",null,{"$f":"VLOOKUP(C11,Information!A25:'Information'!C29,2,FALSE)","v":"-"}]
[]
["Afregningsperiode",null,"Måned"]
["Mdr. aftalt godtgørelse",null,"Hvilken mdr. godtgørelse er aftalt"]
["Reg. Nr. & Kontonummer til overførsel",null,"Reg. & Kontonummer"]
[]
[]
["Kørsel",null,null,"Godtgøresle"]
["Jf. KM regnskab",null,null,{"$f":"'KM regnskab'!H50","v":563.20000000000005}]
[]
["Andre udlæg"]
["Jf. anden godtgørelse",null,null,{"$f":"'Anden godtgørelse'!I22","v":0}]
[]
["Standard jf. aftale"]
["Antal mdr. godtgørelsen dækker",null,null,1,"måneder"]
[]
[null,null,null,"Godtgøresle"]
["Telefonsamtaler og internetforbrug",null,null,{"$f":"Information!F9*D26","v":200}]
["Administrative omkostninger",null,null,{"$f":"Information!F10*D26","v":120.83333333333333}]
["Køb, vask og vedligeholdelse af tøj",null,null,{"$f":"Information!F11*D26","v":166.66666666666666}]
["I alt ",null,null,{"$f":"SUM(D26:D31)","v":488.5}]
[]
["Godtgørelse i alt",null,null,{"$f":"D32+D23+D20","v":1051.7}]
[]
["Beløb der maksimalt godtgøres af klubben jf. aftale",null,null,{"$f":"C15","v":"Hvilken mdr. godtgørelse er aftalt"}]
[]
[]
[]
["Udarbejdet af:"]
[null,"Dato",null,null,"Navn (Underskrift hvis ikke elektronisk)"]
["Godkendt af:"]
[null,"Dato",null,null,"Navn (Underskrift hvis ikke elektronisk)"]

{"sheet":"KM regnskab","index":2,"n_rows":55,"n_cols":8,"rows_kept":55,"cut":false,"hidden":false,"merged":[[10,4,10,6],[8,4,8,6],[7,4,7,6],[6,4,6,6],[5,4,5,6],[54,2,54,3],[52,5,52,6],[54,5,54,6],[11,4,11,6],[13,4,13,6],[14,4,14,6],[15,4,15,6],[18,6,19,6],[18,0,19,0],[18,7,19,7],[18,4,19,4],[18,5,19,5],[52,2,52,3]]}
["Hvidovre Idrætsforening, Fodboldafdelingen",{"$nulls":6},{"$f":"Information!F1","v":"Godtgørelse 2020\n(Over 5.850 pr. år)"}]
[]
["Kilometerregnskab"]
[]
[]
["Navn"]
["Adresse"]
["Cpr. nr."]
["Køretøjets reg.nr."]
[]
["Afdeling",null,null,null,"Vælg Afdeling"]
["Afdelingsleder",null,null,null,{"$f":"VLOOKUP(E11,Information!A25:'Information'!C29,2,FALSE)","v":"-"}]
[]
["Afregningsperiode",null,null,null,"Måned"]
["Mdr. aftalt godtgørelse",null,null,null,"Hvilken mdr. godtgørelse er aftalt"]
["Reg. Nr. & Kontonummer til overførsel",null,null,null,"Reg. & Kontonummer"]
[]
[]
["Dato","Kørt fra","Kørt via","Kørt til","Km pr. gang","Antal gange","Km kørt i alt","Beskrivelse / formål"]
[null,"(adresse)","(adresse)","(adresse)"]
["Benyttes til antal gange til og fra træning pr. måned"]
["Januar",null,"Sollentuna Alle 1-3\n2650 Hvidovre","Byvej 72, 2650 Hvidovre",10,15,{"$f":"E22*F22","v":150},"Træning"]
["Februar",{"$nulls":5},{"$f":"E23*F23","v":0},"Træning"]
["Marts",{"$nulls":5},0,"Træning"]
["April",{"$nulls":5},0,"Træning"]
["Maj",{"$nulls":5},0,"Træning"]
["Juni",{"$nulls":5},0,"Træning"]
["Benyttes til enkeltvise ture i f.m. kamp/scout/andet"]
["2018-01-01","Byvej 38, 2650 Hvidovre","Sollentuna Alle 1-3\n2650 Hvidovre","Byvej 72, 2650 Hvidovre",10,1,{"$f":"E29*F29","v":10},"Kamp/scout/andet"]
[{"$nulls":6},0]
[{"$nulls":6},0]
[{"$nulls":6},0]
[{"$nulls":6},0]
[{"$nulls":6},0]
[{"$nulls":6},0]
[{"$nulls":6},0]
[{"$nulls":6},0]
[{"$nulls":6},0]
[{"$nulls":6},0]
[{"$nulls":6},0]
[{"$nulls":6},0]
[{"$nulls":6},0]
[{"$nulls":6},0]
[{"$nulls":6},0]
[{"$nulls":6},0]
[{"$nulls":6},0]
[{"$nulls":6},{"$f":"E47*F47","v":0}]
["➊ Km til befordringsgodtgørelse",{"$nulls":5},{"$f":"SUM(G22:G47)","v":160}]
[]
["➊ Befordringsgodtgørelse ",null,"km",null,{"$f":"G48","v":160},"á",{"$f":"Information!C17","v":3.52},{"$f":"G48*G50","v":563.20000000000005}]
[]
[]
["Udarbejdet af:",null,null,null,"Dato",null,null,"Navn (Underskrift hvis ikke elektronisk)"]
[]
["Godkendt af:",null,null,null,"Dato",null,null,"Navn (Underskrift hvis ikke elektronisk)"]

{"sheet":"Anden godtgørelse","index":3,"n_rows":55,"n_cols":10,"rows_kept":55,"cut":false,"hidden":false,"merged":[[18,9,20,9],[52,2,52,3],[52,5,52,6],[54,2,54,3],[54,5,54,6],[18,3,19,3],[18,2,19,2],[47,2,47,6],[18,1,19,1],[18,0,20,0],[18,8,19,8],[5,5,5,7],[18,5,18,7],[13,5,13,7],[14,5,14,7],[15,5,15,7],[6,5,6,7],[7,5,7,7],[8,5,8,7],[10,5,10,7],[11,5,11,7]]}
["Hvidovre Idrætsforening, Fodboldafdelingen",{"$nulls":8},{"$f":"Information!F1","v":"Godtgørelse 2020\n(Over 5.850 pr. år)"}]
[]
["Anden godtgørelse"]
[]
[]
["Navn"]
["Adresse"]
["Cpr. nr."]
["Køretøjets reg.nr."]
[]
["Afdeling",{"$nulls":4},"Vælg Afdeling"]
["Afdelingsleder",{"$nulls":4},{"$f":"VLOOKUP(F11,Information!A25:'Information'!C29,2,FALSE)","v":"-"}]
[]
["Afregningsperiode",{"$nulls":4},"Måned"]
["Mdr. aftalt godtgørelse",{"$nulls":4},"Hvilken mdr. godtgørelse er aftalt"]
["Reg. Nr. & Kontonummer til overførsel",{"$nulls":4},"Reg. & Kontonummer"]
[]
[]
["Dato","Kørt fra","Bestemmelsessted","➊  \nKørte km (frem og tilbage)","➋ \nUdenbys kampe mv. (endagsture min. 5 timer)","➌ \nRejse med overnatning (mindst 24 t. varighed) i kr.",null,null,"➍\nUdlæg for klubben i flg. bilag kr.","Bemærkninger: formål mv."]
[{"$nulls":4},"Kost pr. dag \n(max. Kr. 80)","Logi/natophold\n(maks kr. 223)","Fortæring/diæter\n(maks kr. 521 pr. overnatning)","Småfornødenheder"]
[null,"(Adresse)","(adresse)","Km.","antal gange","Kr.","Kr.","Kr.","Kr."]
{"$rows_empty":20}
["I alt for perioden:",null,null,{"$f":"SUM(D22:D41)","v":0},{"$f":"SUM(E22:E41)","v":0},0,0,0,0]
[]
["➊ Befordringsgodtgørelse km ",null,null,null,{"$f":"+D42","v":0},"km","á",{"$f":"Information!C17","v":3.52}," =",{"$f":"+E44*H44","v":0}]
["➋ Merudgift til fortæring gange",null,null,null,{"$f":"+E42","v":0},"gange"," á",{"$f":"Information!C20","v":80}," =",{"$f":"+H45*E45","v":0}]
["➌ Rejsegodtgørelse",{"$nulls":7}," =",{"$f":"+F42+G42+H42","v":0}]
["➍ Udlæg for klubben iflg. bilag",{"$nulls":7}," =",{"$f":"+I42","v":0}]
["Andet: ",{"$nulls":7}," ="]
[]
["Godtgørelse i alt",{"$nulls":7}," =",{"$f":"SUM(J44:J48)","v":0}]
[]
[]
["Udarbejdet af:",null,null,null,"Dato",null,null,"Navn (Underskrift hvis ikke elektronisk)"]
[]
["Godkendt af:",null,null,null,"Dato",null,null,"Navn (Underskrift hvis ikke elektronisk)"]